[Event "Late-Titled-Tuesday-Blitz-March-05-2024"]
[Site "Chess.com"]
[Date "2024.03.05"]
[Round "1"]
[White "Vesapesa"]
[Black "mightysmasher"]
[Result "0-1"]
[WhiteElo "2229"]
[BlackElo "2586"]
[TimeControl "180+1"]
[EndTime "14:07:33 PST"]
[Termination "mightysmasher won by resignation"]

1. e4 {[%clk 0:03:00.9]} 1... e6 {[%clk 0:02:57.3]} 2. d4 {[%clk 0:03:00.5]}
2... d5 {[%clk 0:02:54.7]} 3. exd5 {[%clk 0:03:00.4]} 3... exd5 {[%clk
0:02:54.9]} 4. Bd3 {[%clk 0:02:58.7]} 4... Nf6 {[%clk 0:02:54.2]} 5. Nf3 {[%clk
0:02:58]} 5... Bd6 {[%clk 0:02:54.4]} 6. Qe2+ {[%clk 0:02:57.3]} 6... Qe7 {[%clk
0:02:47.8]} 7. Qxe7+ {[%clk 0:02:56.7]} 7... Bxe7 {[%clk 0:02:48.7]} 8. Bf4
{[%clk 0:02:53.6]} 8... c6 {[%clk 0:02:47.3]} 9. O-O {[%clk 0:02:51.9]} 9... O-O
{[%clk 0:02:46.9]} 10. Re1 {[%clk 0:02:50.8]} 10... Bd8 {[%clk 0:02:39.5]} 11.
Nbd2 {[%clk 0:02:42.5]} 11... Nbd7 {[%clk 0:02:30.3]} 12. Bd6 {[%clk 0:02:35.3]}
12... Re8 {[%clk 0:02:23.6]} 13. Nf1 {[%clk 0:02:23.9]} 13... Ne4 {[%clk
0:02:19.4]} 14. Bxe4 {[%clk 0:02:12.5]} 14... dxe4 {[%clk 0:02:12.5]} 15. Ng3
{[%clk 0:02:09.9]} 15... Re6 {[%clk 0:01:38]} 16. Nxe4 {[%clk 0:02:02.5]} 16...
f5 {[%clk 0:01:29.9]} 17. Nc5 {[%clk 0:01:46.5]} 17... Rxd6 {[%clk 0:01:20.3]}
18. Re8+ {[%clk 0:01:41.5]} 18... Nf8 {[%clk 0:01:19.1]} 19. Rae1 {[%clk
0:01:31.1]} 19... b6 {[%clk 0:01:08]} 20. Nd3 {[%clk 0:01:12.5]} 20... Bd7
{[%clk 0:01:02.7]} 21. R8e2 {[%clk 0:01:10.8]} 21... Bf6 {[%clk 0:01:00.1]} 22.
Nde5 {[%clk 0:01:08.6]} 22... Rd8 {[%clk 0:00:42.1]} 23. c3 {[%clk 0:01:03.4]}
23... Be6 {[%clk 0:00:34.3]} 24. Nd2 {[%clk 0:00:53.8]} 24... Bxe5 {[%clk
0:00:27.1]} 25. Rxe5 {[%clk 0:00:53.3]} 25... Kf7 {[%clk 0:00:26.8]} 26. Nf3
{[%clk 0:00:47.8]} 26... h6 {[%clk 0:00:26.1]} 27. Nh4 {[%clk 0:00:44.1]} 27...
Kf6 {[%clk 0:00:25.4]} 28. f4 {[%clk 0:00:40.5]} 28... g5 {[%clk 0:00:24.4]} 29.
fxg5+ {[%clk 0:00:39]} 29... hxg5 {[%clk 0:00:25.3]} 30. Nf3 {[%clk 0:00:38]}
30... Ng6 {[%clk 0:00:23.9]} 31. R5e3 {[%clk 0:00:31.6]} 31... Bd5 {[%clk
0:00:17.5]} 32. Nd2 {[%clk 0:00:30.3]} 32... g4 {[%clk 0:00:16]} 33. b3 {[%clk
0:00:18.1]} 33... f4 {[%clk 0:00:13]} 34. Re8 {[%clk 0:00:16.6]} 34... Rxe8
{[%clk 0:00:12.7]} 35. Rxe8 {[%clk 0:00:17.5]} 35... Kg5 {[%clk 0:00:12.9]} 36.
c4 {[%clk 0:00:15.7]} 36... Bf7 {[%clk 0:00:12]} 37. Ra8 {[%clk 0:00:14.7]}
37... Rxd4 {[%clk 0:00:11.5]} 38. Rxa7 {[%clk 0:00:14.4]} 38... Rxd2 {[%clk
0:00:10.9]} 39. Rxf7 {[%clk 0:00:14.5]} 39... g3 {[%clk 0:00:11.4]} 40. hxg3
{[%clk 0:00:14.1]} 40... fxg3 {[%clk 0:00:11.5]} 41. Kf1 {[%clk 0:00:14.6]}
41... Nf4 {[%clk 0:00:10.5]} 42. Rg7+ {[%clk 0:00:13.3]} 42... Kf6 {[%clk
0:00:10.2]} 0-1

[Event "Late-Titled-Tuesday-Blitz-March-05-2024"]
[Site "Chess.com"]
[Date "2024.03.05"]
[Round "1"]
[White "Kombinator01"]
[Black "ChessBrainiacOnTwitch"]
[Result "1-0"]
[WhiteElo "2484"]
[BlackElo "2787"]
[TimeControl "180+1"]
[EndTime "14:07:36 PST"]
[Termination "Kombinator01 won by resignation"]

1. d4 {[%clk 0:03:00.9]} 1... Nf6 {[%clk 0:02:58.7]} 2. Nf3 {[%clk 0:02:57.2]}
2... e6 {[%clk 0:02:54.5]} 3. Bf4 {[%clk 0:02:55.4]} 3... b6 {[%clk 0:02:53.4]}
4. c4 {[%clk 0:02:54.9]} 4... Bb7 {[%clk 0:02:54]} 5. Nc3 {[%clk 0:02:55.4]}
5... Be7 {[%clk 0:02:53.1]} 6. g3 {[%clk 0:02:51.4]} 6... O-O {[%clk 0:02:53.7]}
7. Bg2 {[%clk 0:02:51.7]} 7... d5 {[%clk 0:02:49.8]} 8. cxd5 {[%clk 0:02:49.4]}
8... exd5 {[%clk 0:02:50.7]} 9. O-O {[%clk 0:02:49.1]} 9... Nbd7 {[%clk
0:02:49.6]} 10. Rc1 {[%clk 0:02:49.5]} 10... a6 {[%clk 0:02:47.6]} 11. Ne5
{[%clk 0:02:49.8]} 11... Bd6 {[%clk 0:02:44.9]} 12. Qb3 {[%clk 0:02:44.5]} 12...
Bxe5 {[%clk 0:02:07.8]} 13. dxe5 {[%clk 0:02:42.3]} 13... Nc5 {[%clk 0:02:03.3]}
14. Qd1 {[%clk 0:02:26.3]} 14... Nfe4 {[%clk 0:02:02.1]} 15. b4 {[%clk
0:02:21.2]} 15... Ne6 {[%clk 0:01:59.2]} 16. Nxe4 {[%clk 0:02:20]} 16... dxe4
{[%clk 0:02:00.1]} 17. e3 {[%clk 0:02:10.8]} 17... g5 {[%clk 0:01:53.7]} 18. Qg4
{[%clk 0:02:00.8]} 18... Kh8 {[%clk 0:01:53.3]} 19. Rfd1 {[%clk 0:01:54.3]}
19... Qe7 {[%clk 0:01:52.2]} 20. Qf5 {[%clk 0:01:50.1]} 20... gxf4 {[%clk
0:01:49.2]} 21. exf4 {[%clk 0:01:50.1]} 21... Rad8 {[%clk 0:01:47.2]} 22. Bxe4
{[%clk 0:01:48.9]} 22... Bxe4 {[%clk 0:01:44.6]} 23. Qxe4 {[%clk 0:01:49.8]}
23... c5 {[%clk 0:01:43.4]} 24. bxc5 {[%clk 0:01:45.1]} 24... bxc5 {[%clk
0:01:44.3]} 25. h4 {[%clk 0:01:41.8]} 25... Rxd1+ {[%clk 0:01:39.3]} 26. Rxd1
{[%clk 0:01:42.7]} 26... Rd8 {[%clk 0:01:39.9]} 27. Rxd8+ {[%clk 0:01:39.4]}
27... Qxd8 {[%clk 0:01:40.8]} 28. f5 {[%clk 0:01:39.4]} 28... Nd4 {[%clk
0:01:30.7]} 29. f6 {[%clk 0:01:31.2]} 29... c4 {[%clk 0:01:29.6]} 30. Qg4 {[%clk
0:01:28.9]} 30... Ne6 {[%clk 0:01:29.2]} 31. Qxc4 {[%clk 0:01:28.5]} 31... a5
{[%clk 0:01:23.7]} 32. Qe4 {[%clk 0:01:17.7]} 32... Qb8 {[%clk 0:01:16.6]} 33.
Kh2 {[%clk 0:01:13.7]} 33... Qd8 {[%clk 0:01:07]} 34. Kh3 {[%clk 0:01:10.9]}
34... Qg8 {[%clk 0:01:01.5]} 35. f4 {[%clk 0:01:08.1]} 35... h5 {[%clk
0:00:58.6]} 36. f5 {[%clk 0:01:05.5]} 36... Nf8 {[%clk 0:00:54.6]} 37. Qf4
{[%clk 0:01:03]} 37... Qh7 {[%clk 0:00:53.6]} 38. Qg5 {[%clk 0:00:56.6]} 38...
a4 {[%clk 0:00:48]} 39. a3 {[%clk 0:00:56.5]} 39... Qg8 {[%clk 0:00:34.4]} 40.
Qxh5+ {[%clk 0:00:55.9]} 40... Nh7 {[%clk 0:00:34]} 41. Qh6 {[%clk 0:00:49.5]}
41... Qf8 {[%clk 0:00:29.8]} 42. Qxf8+ {[%clk 0:00:46.5]} 42... Nxf8 {[%clk
0:00:30.7]} 43. Kg4 {[%clk 0:00:42]} 43... Nd7 {[%clk 0:00:29.9]} 44. Kf4 {[%clk
0:00:42]} 44... Kg8 {[%clk 0:00:29.4]} 45. g4 {[%clk 0:00:41.3]} 45... Nb6
{[%clk 0:00:28.8]} 46. e6 {[%clk 0:00:39.6]} 46... Kf8 {[%clk 0:00:27.2]} 47.
e7+ {[%clk 0:00:37.4]} 47... Ke8 {[%clk 0:00:27.7]} 48. h5 {[%clk 0:00:38]}
48... Nd5+ {[%clk 0:00:21.7]} 49. Ke5 {[%clk 0:00:38.4]} 49... Ne3 {[%clk
0:00:22.3]} 50. Kf4 {[%clk 0:00:36.3]} 50... Nd5+ {[%clk 0:00:20.9]} 51. Kg5
{[%clk 0:00:36.6]} 51... Nc3 {[%clk 0:00:15.2]} 52. h6 {[%clk 0:00:36.6]} 52...
Ne4+ {[%clk 0:00:15.3]} 53. Kf4 {[%clk 0:00:35.1]} 53... Nxf6 {[%clk 0:00:16.2]}
54. g5 {[%clk 0:00:35.2]} 54... Nh7 {[%clk 0:00:12.3]} 55. f6 {[%clk 0:00:35.2]}
55... Kd7 {[%clk 0:00:08.5]} 56. Kf5 {[%clk 0:00:35.7]} 56... Ke8 {[%clk
0:00:07.6]} 57. g6 {[%clk 0:00:34.4]} 1-0

[Event "Late-Titled-Tuesday-Blitz-March-05-2024"]
[Site "Chess.com"]
[Date "2024.03.05"]
[Round "1"]
[White "SharathRk6"]
[Black "IMRosen"]
[Result "0-1"]
[WhiteElo "2389"]
[BlackElo "2670"]
[TimeControl "180+1"]
[EndTime "14:07:37 PST"]
[Termination "IMRosen won by resignation"]

1. e4 {[%clk 0:03:00.9]} 1... c5 {[%clk 0:02:59.8]} 2. Nf3 {[%clk 0:03:01.2]}
2... Nc6 {[%clk 0:02:59.7]} 3. Bb5 {[%clk 0:03:00.6]} 3... e6 {[%clk 0:03:00]}
4. O-O {[%clk 0:02:59.5]} 4... Nge7 {[%clk 0:02:59.8]} 5. d4 {[%clk 0:02:57.2]}
5... cxd4 {[%clk 0:02:59.3]} 6. Nxd4 {[%clk 0:02:56.9]} 6... a6 {[%clk
0:02:53.1]} 7. Be2 {[%clk 0:02:56]} 7... Nxd4 {[%clk 0:02:51.5]} 8. Qxd4 {[%clk
0:02:55.9]} 8... Nc6 {[%clk 0:02:52.2]} 9. Qe3 {[%clk 0:02:52.5]} 9... Qc7
{[%clk 0:02:46.6]} 10. c4 {[%clk 0:02:47.7]} 10... Be7 {[%clk 0:02:34.2]} 11.
Nc3 {[%clk 0:02:45.3]} 11... O-O {[%clk 0:02:28.5]} 12. b3 {[%clk 0:02:44]}
12... d6 {[%clk 0:02:26.8]} 13. Bb2 {[%clk 0:02:43.8]} 13... b6 {[%clk
0:02:17.4]} 14. Rfd1 {[%clk 0:02:37]} 14... Bb7 {[%clk 0:02:16.8]} 15. Rac1
{[%clk 0:02:37]} 15... Ne5 {[%clk 0:02:12.2]} 16. Na4 {[%clk 0:02:30.9]} 16...
Nd7 {[%clk 0:02:08.5]} 17. f4 {[%clk 0:02:21.2]} 17... Rfe8 {[%clk 0:02:04.5]}
18. e5 {[%clk 0:02:11.4]} 18... dxe5 {[%clk 0:01:56.3]} 19. fxe5 {[%clk
0:02:00.9]} 19... h6 {[%clk 0:01:29.4]} 20. Bd4 {[%clk 0:01:35]} 20... Bg5
{[%clk 0:01:21.8]} 21. Qf2 {[%clk 0:01:31.5]} 21... Bxc1 {[%clk 0:01:17.2]} 22.
Nxb6 {[%clk 0:01:27.1]} 22... Bg5 {[%clk 0:00:44.3]} 23. Nxa8 {[%clk 0:01:25.6]}
23... Bxa8 {[%clk 0:00:43]} 24. Bh5 {[%clk 0:01:12.5]} 24... g6 {[%clk
0:00:31.8]} 25. Rf1 {[%clk 0:01:11.1]} 25... Rf8 {[%clk 0:00:15]} 26. Bg4 {[%clk
0:01:00.3]} 26... Nxe5 {[%clk 0:00:11.1]} 27. Bxe6 {[%clk 0:00:53.9]} 27... Nf3+
{[%clk 0:00:11.2]} 28. gxf3 {[%clk 0:00:49.2]} 28... fxe6 {[%clk 0:00:11.4]} 29.
Qe2 {[%clk 0:00:47.7]} 29... Qc6 {[%clk 0:00:08.6]} 30. Qe5 {[%clk 0:00:46.1]}
30... Bf6 {[%clk 0:00:08.9]} 31. Qe3 {[%clk 0:00:42]} 31... Bxd4 {[%clk
0:00:07]} 32. Qxd4 {[%clk 0:00:42.5]} 32... Kh7 {[%clk 0:00:03.5]} 33. Qa7+
{[%clk 0:00:41.6]} 33... Bb7 {[%clk 0:00:03.4]} 34. b4 {[%clk 0:00:37]} 34...
Rxf3 {[%clk 0:00:03.6]} 35. Rd1 {[%clk 0:00:29.9]} 35... Rg3+ {[%clk 0:00:03.8]}
36. Kf2 {[%clk 0:00:26.2]} 36... Qg2+ {[%clk 0:00:03.7]} 37. Ke1 {[%clk
0:00:26.8]} 37... Qg1+ {[%clk 0:00:03.6]} 38. Qxg1 {[%clk 0:00:25.5]} 38...
Rxg1+ {[%clk 0:00:04.5]} 39. Kd2 {[%clk 0:00:26]} 39... Rxd1+ {[%clk 0:00:03.9]}
40. Kxd1 {[%clk 0:00:26.9]} 40... Kg7 {[%clk 0:00:03.8]} 41. b5 {[%clk
0:00:27.3]} 41... axb5 {[%clk 0:00:03.9]} 42. cxb5 {[%clk 0:00:28]} 42... Kf6
{[%clk 0:00:04.5]} 43. a4 {[%clk 0:00:28.6]} 43... Ke7 {[%clk 0:00:05.2]} 44. a5
{[%clk 0:00:29.1]} 44... Kd6 {[%clk 0:00:05.5]} 45. a6 {[%clk 0:00:29.5]} 45...
Kc7 {[%clk 0:00:02.1]} 46. axb7 {[%clk 0:00:23.1]} 46... Kxb7 {[%clk 0:00:03]}
47. Kd2 {[%clk 0:00:23.4]} 47... Kb6 {[%clk 0:00:03.4]} 48. Ke3 {[%clk
0:00:24.1]} 48... Kxb5 {[%clk 0:00:04]} 49. Ke4 {[%clk 0:00:24.8]} 49... Kc6
{[%clk 0:00:02.9]} 50. Ke5 {[%clk 0:00:25.5]} 50... Kd7 {[%clk 0:00:02.9]} 51.
Kf6 {[%clk 0:00:26.1]} 51... g5 {[%clk 0:00:02.4]} 52. Kg6 {[%clk 0:00:26.7]}
52... e5 {[%clk 0:00:02.4]} 53. Kxh6 {[%clk 0:00:27.3]} 53... e4 {[%clk
0:00:02.9]} 54. Kxg5 {[%clk 0:00:27.9]} 54... e3 {[%clk 0:00:03.6]} 55. h4
{[%clk 0:00:28.5]} 55... e2 {[%clk 0:00:04.3]} 56. h5 {[%clk 0:00:29.1]} 56...
e1=Q {[%clk 0:00:05]} 57. h6 {[%clk 0:00:29.7]} 57... Qa1 {[%clk 0:00:05.7]} 58.
Kg6 {[%clk 0:00:29.9]} 58... Qh8 {[%clk 0:00:06.6]} 0-1

[Event "Late-Titled-Tuesday-Blitz-March-05-2024"]
[Site "Chess.com"]
[Date "2024.03.05"]
[Round "1"]
[White "picturesquecheck"]
[Black "rychessmaster1"]
[Result "0-1"]
[WhiteElo "2409"]
[BlackElo "2703"]
[TimeControl "180+1"]
[EndTime "14:07:38 PST"]
[Termination "rychessmaster1 won by resignation"]

1. e4 {[%clk 0:03:00.9]} 1... c6 {[%clk 0:03:00]} 2. d4 {[%clk 0:02:59.9]} 2...
d5 {[%clk 0:03:00.2]} 3. exd5 {[%clk 0:03:00.7]} 3... cxd5 {[%clk 0:03:01.1]} 4.
Bd3 {[%clk 0:03:00.2]} 4... Nf6 {[%clk 0:03:01.3]} 5. c3 {[%clk 0:03:00.7]} 5...
Bg4 {[%clk 0:03:01.4]} 6. Ne2 {[%clk 0:02:58.1]} 6... Nc6 {[%clk 0:02:55.8]} 7.
f3 {[%clk 0:02:51.9]} 7... Bh5 {[%clk 0:02:54.1]} 8. O-O {[%clk 0:02:51.1]} 8...
e6 {[%clk 0:02:52]} 9. Qe1 {[%clk 0:02:50.7]} 9... Bg6 {[%clk 0:02:48.2]} 10.
Nf4 {[%clk 0:02:48.9]} 10... Bd6 {[%clk 0:02:43.8]} 11. Nxg6 {[%clk 0:02:19]}
11... hxg6 {[%clk 0:02:44.2]} 12. f4 {[%clk 0:02:16.9]} 12... Qc7 {[%clk
0:02:00.1]} 13. Na3 {[%clk 0:02:08.7]} 13... a6 {[%clk 0:01:57.9]} 14. b4 {[%clk
0:02:07.3]} 14... Ne7 {[%clk 0:01:50.6]} 15. Nc2 {[%clk 0:01:46.1]} 15... Rc8
{[%clk 0:01:37.1]} 16. Bd2 {[%clk 0:01:44]} 16... Nf5 {[%clk 0:01:34.8]} 17. Ne3
{[%clk 0:01:43.5]} 17... Nxe3 {[%clk 0:01:31.6]} 18. Qxe3 {[%clk 0:01:43.8]}
18... Ng4 {[%clk 0:01:31.9]} 19. Qg3 {[%clk 0:01:41.7]} 19... Nxh2 {[%clk
0:01:31.7]} 20. Rfe1 {[%clk 0:01:38.1]} 20... Kf8 {[%clk 0:01:16.1]} 21. Kf2
{[%clk 0:01:24.9]} 21... f5 {[%clk 0:01:09.3]} 22. Rxe6 {[%clk 0:01:04.9]} 22...
Ng4+ {[%clk 0:01:09.1]} 23. Kg1 {[%clk 0:01:04.2]} 23... Be7 {[%clk 0:00:55.4]}
24. Qf3 {[%clk 0:00:41.7]} 24... Bh4 {[%clk 0:00:32.2]} 25. g3 {[%clk
0:00:41.6]} 25... Bf6 {[%clk 0:00:32.7]} 26. Rae1 {[%clk 0:00:38.3]} 26... Rh2
{[%clk 0:00:29.4]} 27. R1e2 {[%clk 0:00:35.8]} 27... Rxe2 {[%clk 0:00:25.8]} 28.
Qxe2 {[%clk 0:00:36.4]} 28... Kf7 {[%clk 0:00:21.8]} 29. Bc2 {[%clk 0:00:33.2]}
29... Qc4 {[%clk 0:00:19]} 30. Qxc4 {[%clk 0:00:30.4]} 30... dxc4 {[%clk
0:00:19.9]} 31. Rb6 {[%clk 0:00:27.1]} 31... Rc7 {[%clk 0:00:20.5]} 32. Bd1
{[%clk 0:00:27.2]} 32... Re7 {[%clk 0:00:08.6]} 33. Bxg4 {[%clk 0:00:12.1]}
33... fxg4 {[%clk 0:00:09.5]} 34. Kf2 {[%clk 0:00:12.7]} 34... Rd7 {[%clk
0:00:08.3]} 35. f5 {[%clk 0:00:06.4]} 35... gxf5 {[%clk 0:00:08]} 36. Bf4 {[%clk
0:00:06.5]} 36... Bd8 {[%clk 0:00:08.1]} 37. Rd6 {[%clk 0:00:06.4]} 37... Rxd6
{[%clk 0:00:08.7]} 38. Bxd6 {[%clk 0:00:07.2]} 38... b5 {[%clk 0:00:09.3]} 39.
Bc5 {[%clk 0:00:07.4]} 39... Ke6 {[%clk 0:00:09.8]} 40. Bf8 {[%clk 0:00:07]}
40... g6 {[%clk 0:00:09.9]} 41. Bc5 {[%clk 0:00:07.3]} 41... Bg5 {[%clk
0:00:10.3]} 42. Ke2 {[%clk 0:00:04.3]} 42... Kd5 {[%clk 0:00:10.8]} 43. Bf8
{[%clk 0:00:04.1]} 43... Ke4 {[%clk 0:00:10.9]} 44. Bg7 {[%clk 0:00:04.1]} 44...
Be7 {[%clk 0:00:10.8]} 45. a3 {[%clk 0:00:03.6]} 45... Bd6 {[%clk 0:00:11]} 0-1

[Event "Late-Titled-Tuesday-Blitz-March-05-2024"]
[Site "Chess.com"]
[Date "2024.03.05"]
[Round "1"]
[White "BabageldiAnnaberdiyev"]
[Black "SamCopeland"]
[Result "1-0"]
[WhiteElo "2630"]
[BlackElo "2325"]
[TimeControl "180+1"]
[EndTime "14:07:41 PST"]
[Termination "BabageldiAnnaberdiyev won by checkmate"]

1. e4 {[%clk 0:02:59.8]} 1... Nf6 {[%clk 0:02:56.3]} 2. e5 {[%clk 0:02:59.2]}
2... Nd5 {[%clk 0:02:55.5]} 3. c4 {[%clk 0:02:59.7]} 3... Nb6 {[%clk 0:02:53.9]}
4. d4 {[%clk 0:03:00.3]} 4... d6 {[%clk 0:02:54.4]} 5. f4 {[%clk 0:03:00.4]}
5... dxe5 {[%clk 0:02:53.8]} 6. fxe5 {[%clk 0:02:54.7]} 6... Nc6 {[%clk
0:02:53.7]} 7. Be3 {[%clk 0:02:53.2]} 7... Bf5 {[%clk 0:02:53.4]} 8. Nc3 {[%clk
0:02:52.9]} 8... e6 {[%clk 0:02:53.5]} 9. Be2 {[%clk 0:02:51.9]} 9... Be7 {[%clk
0:02:53.1]} 10. Nf3 {[%clk 0:02:51.4]} 10... O-O {[%clk 0:02:52.9]} 11. O-O
{[%clk 0:02:38.9]} 11... f6 {[%clk 0:02:52.9]} 12. d5 {[%clk 0:02:32]} 12...
Nxe5 {[%clk 0:02:28.1]} 13. Bxb6 {[%clk 0:02:16.2]} 13... axb6 {[%clk
0:02:26.2]} 14. Nd4 {[%clk 0:02:01.4]} 14... Bc5 {[%clk 0:02:17.5]} 15. Kh1
{[%clk 0:02:01.7]} 15... Qd7 {[%clk 0:01:43.5]} 16. Nxf5 {[%clk 0:01:55.1]}
16... exf5 {[%clk 0:01:42.2]} 17. Bd3 {[%clk 0:01:55.3]} 17... g6 {[%clk
0:01:38.8]} 18. h3 {[%clk 0:01:50.8]} 18... Rae8 {[%clk 0:01:37.1]} 19. a3
{[%clk 0:01:49.4]} 19... Nxd3 {[%clk 0:01:33.2]} 20. Qxd3 {[%clk 0:01:50.3]}
20... Re3 {[%clk 0:01:33.2]} 21. Qd2 {[%clk 0:01:50.1]} 21... Rfe8 {[%clk
0:01:31.2]} 22. b4 {[%clk 0:01:42.7]} 22... Bf8 {[%clk 0:01:15.6]} 23. Rfe1
{[%clk 0:01:30.1]} 23... f4 {[%clk 0:01:12.4]} 24. Rxe3 {[%clk 0:01:22.8]} 24...
fxe3 {[%clk 0:01:11.3]} 25. Qd3 {[%clk 0:01:22.8]} 25... f5 {[%clk 0:01:08.9]}
26. Rf1 {[%clk 0:01:17.9]} 26... Qe7 {[%clk 0:01:04.6]} 27. Ne2 {[%clk
0:01:18.1]} 27... Qe4 {[%clk 0:01:01.4]} 28. Qxe4 {[%clk 0:01:13]} 28... Rxe4
{[%clk 0:01:02.3]} 29. Rf4 {[%clk 0:01:13]} 29... Rxf4 {[%clk 0:00:51.5]} 30.
Nxf4 {[%clk 0:01:13.9]} 30... Bh6 {[%clk 0:00:51.1]} 31. Ne2 {[%clk 0:01:11.8]}
31... f4 {[%clk 0:00:47.6]} 32. Kg1 {[%clk 0:01:11.4]} 32... g5 {[%clk 0:00:43]}
33. Nd4 {[%clk 0:01:01.9]} 33... Bg7 {[%clk 0:00:27.7]} 34. Ne6 {[%clk
0:01:01.7]} 34... Bb2 {[%clk 0:00:22.3]} 35. a4 {[%clk 0:01:01]} 35... Be5
{[%clk 0:00:19.8]} 36. Kf1 {[%clk 0:00:59.1]} 36... Kf7 {[%clk 0:00:18.9]} 37.
Nxg5+ {[%clk 0:00:59]} 37... Kg6 {[%clk 0:00:17]} 38. Nf3 {[%clk 0:00:58.7]}
38... Bc3 {[%clk 0:00:13.8]} 39. b5 {[%clk 0:00:58.5]} 39... Kf5 {[%clk
0:00:13.8]} 40. Ke2 {[%clk 0:00:58.6]} 40... h5 {[%clk 0:00:12.4]} 41. Kd3
{[%clk 0:00:57.4]} 41... Bf6 {[%clk 0:00:11.9]} 42. Ng1 {[%clk 0:00:55.4]} 42...
Be7 {[%clk 0:00:11.7]} 43. Ne2 {[%clk 0:00:55.9]} 43... Bd6 {[%clk 0:00:11.2]}
44. Nd4+ {[%clk 0:00:55.2]} 44... Kg5 {[%clk 0:00:10.6]} 45. Ke4 {[%clk
0:00:54.6]} 45... Kh4 {[%clk 0:00:10.4]} 46. Kf3 {[%clk 0:00:55.2]} 46... Kg5
{[%clk 0:00:10]} 47. c5 {[%clk 0:00:41.6]} 47... bxc5 {[%clk 0:00:06.3]} 48.
Ne6+ {[%clk 0:00:41.6]} 48... Kf6 {[%clk 0:00:06.1]} 49. a5 {[%clk 0:00:42.3]}
49... c4 {[%clk 0:00:05.1]} 50. a6 {[%clk 0:00:41.8]} 50... c3 {[%clk
0:00:05.2]} 51. axb7 {[%clk 0:00:24]} 51... c2 {[%clk 0:00:04.7]} 52. b8=Q
{[%clk 0:00:24.5]} 52... c1=Q {[%clk 0:00:04.9]} 53. Qd8+ {[%clk 0:00:25.1]}
53... Ke5 {[%clk 0:00:05.1]} 54. Qg5# {[%clk 0:00:23.2]} 1-0

[Event "Late-Titled-Tuesday-Blitz-March-05-2024"]
[Site "Chess.com"]
[Date "2024.03.05"]
[Round "1"]
[White "ozates"]
[Black "ChessFanNM"]
[Result "1-0"]
[WhiteElo "2593"]
[BlackElo "2275"]
[TimeControl "180+1"]
[EndTime "14:07:42 PST"]
[Termination "ozates won by resignation"]

1. e4 {[%clk 0:02:55.8]} 1... c6 {[%clk 0:02:58.9]} 2. d4 {[%clk 0:02:54.4]}
2... d5 {[%clk 0:02:57.3]} 3. exd5 {[%clk 0:02:52.3]} 3... cxd5 {[%clk
0:02:55.9]} 4. c4 {[%clk 0:02:53.2]} 4... Nf6 {[%clk 0:02:55.4]} 5. Nc3 {[%clk
0:02:53.4]} 5... Nc6 {[%clk 0:02:54.9]} 6. Bg5 {[%clk 0:02:53.2]} 6... dxc4
{[%clk 0:02:42.3]} 7. Bxc4 {[%clk 0:02:44.8]} 7... h6 {[%clk 0:02:41.2]} 8. Bh4
{[%clk 0:02:42.3]} 8... e6 {[%clk 0:02:33.5]} 9. Nf3 {[%clk 0:02:41.7]} 9... Be7
{[%clk 0:02:33.3]} 10. O-O {[%clk 0:02:41]} 10... O-O {[%clk 0:02:33.1]} 11. a3
{[%clk 0:02:40.8]} 11... Nd5 {[%clk 0:02:29.5]} 12. Bg3 {[%clk 0:02:40.8]} 12...
Bf6 {[%clk 0:02:27.1]} 13. h3 {[%clk 0:02:12.1]} 13... Nb6 {[%clk 0:02:17.9]}
14. Ba2 {[%clk 0:02:12]} 14... Nxd4 {[%clk 0:02:17]} 15. Nxd4 {[%clk 0:02:11.3]}
15... Qxd4 {[%clk 0:02:16]} 16. Qf3 {[%clk 0:02:10.9]} 16... Qd2 {[%clk
0:01:40.3]} 17. Ne4 {[%clk 0:02:00.8]} 17... Qxb2 {[%clk 0:01:39.4]} 18. Rfb1
{[%clk 0:01:59.9]} 18... Qxa1 {[%clk 0:01:33.5]} 19. Rxa1 {[%clk 0:01:58.6]}
19... Bxa1 {[%clk 0:01:34.4]} 20. Bb1 {[%clk 0:01:53.9]} 20... Bd7 {[%clk
0:01:28.5]} 21. Qd3 {[%clk 0:01:51.5]} 21... g6 {[%clk 0:01:14.9]} 22. Bf4
{[%clk 0:01:51.6]} 22... Bc6 {[%clk 0:01:12.6]} 23. Bxh6 {[%clk 0:01:51.2]}
23... Rfd8 {[%clk 0:01:12.4]} 24. Qf3 {[%clk 0:01:49.7]} 24... Nd5 {[%clk
0:00:59.8]} 25. Bg5 {[%clk 0:01:48.1]} 25... Nf6 {[%clk 0:00:55.9]} 26. Bxf6
{[%clk 0:01:45.6]} 26... Bxf6 {[%clk 0:00:34.8]} 27. Nxf6+ {[%clk 0:01:42.9]}
27... Kg7 {[%clk 0:00:34.9]} 28. Qc3 {[%clk 0:01:22.7]} 28... Rd1+ {[%clk
0:00:29.3]} 29. Kh2 {[%clk 0:01:23.1]} 29... Rxb1 {[%clk 0:00:12.8]} 30. Nh5+
{[%clk 0:01:05.2]} 30... Kf8 {[%clk 0:00:11.1]} 31. Qh8+ {[%clk 0:01:05.3]}
31... Ke7 {[%clk 0:00:10.8]} 32. Qxa8 {[%clk 0:01:06.2]} 32... gxh5 {[%clk
0:00:09.6]} 33. Qxa7 {[%clk 0:01:06.8]} 33... Rb5 {[%clk 0:00:09.4]} 34. Qd4
{[%clk 0:01:01.3]} 34... Rg5 {[%clk 0:00:07.6]} 35. f3 {[%clk 0:01:00.4]} 35...
Rd5 {[%clk 0:00:07.4]} 36. Qh4+ {[%clk 0:00:56.5]} 36... Ke8 {[%clk 0:00:07.4]}
37. Qf6 {[%clk 0:00:56.3]} 37... Rf5 {[%clk 0:00:07.5]} 38. Qh8+ {[%clk
0:00:56]} 38... Ke7 {[%clk 0:00:07.4]} 39. Qc3 {[%clk 0:00:56.2]} 39... Rd5
{[%clk 0:00:07.1]} 40. g4 {[%clk 0:00:42.4]} 40... hxg4 {[%clk 0:00:07]} 41.
fxg4 {[%clk 0:00:42.7]} 41... Ke8 {[%clk 0:00:06]} 42. h4 {[%clk 0:00:42.9]}
42... Rb5 {[%clk 0:00:05.6]} 43. h5 {[%clk 0:00:39.4]} 43... Rd5 {[%clk
0:00:05.4]} 44. h6 {[%clk 0:00:38.6]} 44... Rd1 {[%clk 0:00:05]} 45. Qg7 {[%clk
0:00:30.1]} 45... Rh1+ {[%clk 0:00:04]} 46. Kg3 {[%clk 0:00:30.5]} 46... Rg1+
{[%clk 0:00:04.2]} 47. Kf2 {[%clk 0:00:30.2]} 47... Rh1 {[%clk 0:00:04.1]} 48.
h7 {[%clk 0:00:29.8]} 48... Rh2+ {[%clk 0:00:04.3]} 49. Kg3 {[%clk 0:00:27.5]}
49... Rg2+ {[%clk 0:00:04]} 50. Kh3 {[%clk 0:00:28]} 50... Rg1 {[%clk
0:00:02.9]} 51. h8=Q+ {[%clk 0:00:28.5]} 1-0